[Event "7. Arber-Senioren-Cup 2019"]
[Site "Bodenmais"]
[Date "2019.08.01"]
[Round "6.3"]
[White "Koehler, Gerhard"]
[Black "Puehn, Georg"]
[Result "1-0"]
[ECO "A13"]
[WhiteElo "2197"]
[BlackElo "1990"]
[Annotator "NA"]
[PlyCount "81"]
[EventDate "2019.07.27"]
[EventType "swiss"]
[EventCountry "GER"]
[SourceTitle "playchess.com"]
[Source "ChessBase"]
[SourceQuality "1"]
[TimeControl "60/7800+30:0"]

1. c4 {[%emt 0:00:00]} e6 {[%emt 0:00:00]} 2. Nf3 {[%emt 0:00:18]} d5 {[%emt 0:00:11]} 3. g3 {[%emt 0:00:25]} dxc4 {[%emt 0:04:31]} 4. Qa4+ {[%emt 0:04:20]} Bd7 {[%emt 0:01:10]} 5. Qxc4 {[%emt 0:00:12]} c5 {[%emt 0:06:54]} 6. Ne5 {[%emt 0:03:10]} Nf6 {[%emt 0:10:09]} 7. Bg2 {[%emt 0:02:18]} Qc8 {[%emt 0:01:08]} 8. O-O {[%emt 0:10:55]} Bd6 {[%emt 0:04:37]} 9. Nxd7 {[%emt 0:00:22]} Nbxd7 {[%emt 0:01:12]} 10. Nc3 {[%emt 0:04:28]} a6 {[%emt 0:03:32]} 11. d3 {[%emt 0:04:29]} Rb8 {[%emt 0:04:10]} 12. Bd2 {[%emt 0:07:42]} O-O {[%emt 0:04:37]} 13. Rac1 {[%emt 0:03:45]} Ne5 {[%emt 0:08:55]} 14. Qa4 {[%emt 0:01:36]} b5 {[%emt 0:06:51]} 15. Qc2 {[%emt 0:02:59]} Qd7 {[%emt 0:03:08]} 16. Bg5 {[%emt 0:03:12]} Rfc8 {[%emt 0:09:14]} 17. b3 {[%emt 0:12:42]} c4 {[%emt 0:08:37]} 18. bxc4 {[%emt 0:12:27]} bxc4 {[%emt 0:00:47]} 19. d4 {[%emt 0:00:34]} Nc6 {[%emt 0:02:41]} 20. Bxf6 {[%emt 0:11:50]} gxf6 {[%emt 0:00:15]} 21. Ne4 {[%emt 0:00:13]} Be7 {[%emt 0:00:03]} 22. Qa4 {[%emt 0:09:56]} f5 {[%emt 0:19:26]} 23. Nc3 {[%emt 0:05:44]} Rc7 {[%emt 0:11:56]} 24. d5 {[%emt 0:12:08]} Nb4 {[%emt 0:07:36]} 25. Qd1 {[%emt 0:02:10]} Rd8 {[%emt 0:04:36]} 26. e4 {[%emt 0:07:44]} Nd3 {[%emt 0:08:17]} 27. Rc2 {[%emt 0:00:23]} Bf6 {[%emt 0:01:01]} 28. dxe6 {[%emt 0:02:24]} fxe6 {[%emt 0:01:10]} 29. exf5 {[%emt 0:01:03]} Nb4 {[%emt 0:01:28]} 30. Qxd7 {[%emt 0:02:42]} Rdxd7 {[%emt 0:00:50]} 31. Ne4 {[%emt 0:00:29]} Bd4 {[%emt 0:01:48]} 32. fxe6 {[%emt 0:01:57]} Re7 {[%emt 0:00:46]} 33. Rd2 {[%emt 0:05:46]} Ba7 {[%emt 0:01:56]} 34. Nc3 {[%emt 0:01:06]} Rxe6 {[%emt 0:02:16]} 35. a3 {[%emt 0:01:32]} Nd3 {[%emt 0:00:37]} 36. Bd5 {[%emt 0:00:14]} Kf7 {[%emt 0:00:05]} 37. Re2 {[%emt 0:00:30]} Rcc6 {[%emt 0:00:42]} 38. Rxe6 {[%emt 0:00:35]} Rxe6 {[%emt 0:00:05]} 39. Bxc4 {[%emt 0:00:12]} Ne5 {[%emt 0:00:46]} 40. Bxe6+ {[%emt 0:00:33]} Kxe6 {[%emt 0:00:07]} 41. Kg2 {[%emt 0:00:15]} 1-0

[Event "7. Arber-Senioren-Cup 2019"]
[Site "Bodenmais"]
[Date "2019.08.01"]
[Round "6.4"]
[White "Kurka, Dieter"]
[Black "Lorenc, Tomas"]
[Result "0-1"]
[ECO "A45"]
[WhiteElo "2006"]
[BlackElo "2158"]
[Annotator "NA"]
[PlyCount "74"]
[EventDate "2019.07.27"]
[EventType "swiss"]
[EventCountry "GER"]
[SourceTitle "playchess.com"]
[Source "ChessBase"]
[SourceQuality "1"]
[TimeControl "60/7800+30:0"]

1. d4 {[%emt 0:00:00]} Nf6 {[%emt 0:00:00]} 2. Bf4 {[%emt 0:00:00]} c5 {[%emt 0:00:34]} 3. e3 {[%emt 0:00:04]} g6 {[%emt 0:00:23]} 4. Nc3 {[%emt 0:02:06]} Bg7 {[%emt 0:02:19]} 5. h4 {[%emt 0:01:03]} h5 {[%emt 0:02:43]} 6. Nb5 {[%emt 0:01:17]} Nd5 {[%emt 0:11:40]} 7. Bh2 {[%emt 0:13:07]} a6 {[%emt 0:09:37]} 8. Bc4 {[%emt 0:00:31]} Qa5+ {[%emt 0:02:57]} 9. c3 {[%emt 0:01:33]} axb5 {[%emt 0:03:03]} 10. Bxd5 {[%emt 0:00:10]} b4 {[%emt 0:01:01]} 11. Bb3 {[%emt 0:16:12]} bxc3 {[%emt 0:03:25]} 12. bxc3 {[%emt 0:00:08]} cxd4 {[%emt 0:00:44]} 13. Ne2 {[%emt 0:04:43]} dxc3 {[%emt 0:02:43]} 14. O-O {[%emt 0:00:52]} Nc6 {[%emt 0:01:46]} 15. Rc1 {[%emt 0:03:19]} O-O {[%emt 0:02:26]} 16. Qd3 {[%emt 0:05:24]} d5 {[%emt 0:09:13]} 17. Nxc3 {[%emt 0:20:42]} Bf5 {[%emt 0:04:26]} 18. Qd2 {[%emt 0:02:02]} d4 {[%emt 0:07:48]} 19. exd4 {[%emt 0:01:23]} Nxd4 {[%emt 0:00:22]} 20. Qe3 {[%emt 0:03:07]} Nxb3 {[%emt 0:02:25]} 21. axb3 {[%emt 0:00:02]} Rad8 {[%emt 0:01:23]} 22. Ne4 {[%emt 0:01:21]} Rd4 {[%emt 0:05:34]} 23. Ng5 {[%emt 0:12:16]} Bf6 {[%emt 0:06:09]} 24. Rc4 {[%emt 0:13:22]} Rd3 {[%emt 0:02:41]} 25. b4 {[%emt 0:01:45]} Qa2 {[%emt 0:07:46]} 26. Qf4 {[%emt 0:07:00]} b5 {[%emt 0:10:15]} 27. Rc5 {[%emt 0:03:23]} Rd4 {[%emt 0:00:43]} 28. Qf3 {[%emt 0:00:14]} Bg4 {[%emt 0:03:16]} 29. Qb7 {[%emt 0:02:24]} Qe2 {[%emt 0:01:30]} 30. Qxb5 {[%emt 0:01:12]} Qxb5 {[%emt 0:00:15]} 31. Rxb5 {[%emt 0:00:10]} Be2 {[%emt 0:00:02]} 32. Rb7 {[%emt 0:02:29]} Bxf1 {[%emt 0:01:40]} 33. Kxf1 {[%emt 0:00:02]} Rxh4 {[%emt 0:00:13]} 34. Nf3 {[%emt 0:00:28]} Rc4 {[%emt 0:00:12]} 35. Be5 {[%emt 0:03:02]} Ra8 {[%emt 0:03:55]} 36. Ke2 {[%emt 0:01:43]} Bxe5 {[%emt 0:00:38]} 37. Nxe5 {[%emt 0:00:07]} Re4+ 0-1

[Event "7. Arber-Senioren-Cup 2019"]
[Site "Bodenmais"]
[Date "2019.08.01"]
[Round "6.5"]
[White "Godoj, Veit"]
[Black "Kuempers, Ulrich"]
[Result "1-0"]
[ECO "A45"]
[WhiteElo "1995"]
[BlackElo "2030"]
[Annotator "NA"]
[PlyCount "77"]
[EventDate "2019.07.27"]
[EventType "swiss"]
[EventCountry "GER"]
[SourceTitle "playchess.com"]
[Source "ChessBase"]
[SourceQuality "1"]
[TimeControl "60/7800+30:0"]

1. d4 {[%emt 0:00:00]} Nf6 {[%emt 0:00:00]} 2. Bf4 {[%emt 0:00:03]} g6 {[%emt 0:00:00]} 3. Nc3 {[%emt 0:00:03]} d5 {[%emt 0:00:00]} 4. Nf3 {[%emt 0:00:11]} Bg7 {[%emt 0:00:09]} 5. e3 {[%emt 0:00:09]} O-O {[%emt 0:00:16]} 6. Be2 {[%emt 0:00:06]} c5 {[%emt 0:07:07]} 7. Ne5 {[%emt 0:00:09]} Nc6 {[%emt 0:04:57]} 8. O-O {[%emt 0:04:50]} Be6 {[%emt 0:04:27]} 9. Nxc6 {[%emt 0:15:53]} bxc6 {[%emt 0:00:15]} 10. Be5 {[%emt 0:00:01]} cxd4 {[%emt 0:06:48]} 11. exd4 {[%emt 0:00:12]} Nd7 {[%emt 0:03:21]} 12. Bxg7 {[%emt 0:00:43]} Kxg7 {[%emt 0:00:04]} 13. Na4 {[%emt 0:11:32]} Qc7 {[%emt 0:05:25]} 14. Re1 {[%emt 0:03:26]} Kg8 {[%emt 0:07:59]} 15. Bf3 {[%emt 0:04:40]} Rad8 {[%emt 0:05:39]} 16. Re3 {[%emt 0:11:47]} Rfe8 {[%emt 0:07:47]} 17. Rc1 {[%emt 0:05:50]} Qd6 {[%emt 0:07:12]} 18. Qd2 {[%emt 0:11:29]} f6 {[%emt 0:12:32]} 19. b3 {[%emt 0:24:39]} Bf7 {[%emt 0:01:51]} 20. c4 {[%emt 0:01:04]} dxc4 {[%emt 0:05:27]} 21. Qa5 {[%emt 0:06:13]} cxb3 {[%emt 0:09:09]} 22. axb3 {[%emt 0:00:47]} Qxd4 {[%emt 0:14:30]} 23. Rd1 {[%emt 0:00:36]} Qf4 {[%emt 0:04:16]} 24. Rxe7 {[%emt 0:00:57]} Nb6 {[%emt 0:22:27]} 25. Rxe8+ {[%emt 0:14:34]} Rxe8 {[%emt 0:03:13]} 26. Nxb6 {[%emt 0:00:58]} Bxb3 {[%emt 0:02:29]} 27. Nd5 {[%emt 0:09:25]} Bxd5 {[%emt 0:02:40]} 28. Bxd5+ {[%emt 0:00:01]} cxd5 {[%emt 0:00:04]} 29. Qxd5+ {[%emt 0:00:12]} Kh8 {[%emt 0:00:21]} 30. g3 {[%emt 0:02:03]} Qe5 {[%emt 0:00:25]} 31. Qc6 {[%emt 0:00:27]} Re7 {[%emt 0:00:51]} 32. h4 {[%emt 0:01:14]} Kg7 33. Rd7 {[%emt 0:01:22]} Kf7 {[%emt 0:00:38]} 34. Rd1 {[%emt 0:03:33]} Qe4 {[%emt 0:00:54]} 35. Qc8 {[%emt 0:00:07]} Qf3 {[%emt 0:01:23]} 36. Rc1 {[%emt 0:00:54]} Qe4 {[%emt 0:00:56]} 37. Qh8 {[%emt 0:00:07]} Ke6 {[%emt 0:01:11]} 38. Qg8+ {[%emt 0:00:51]} Kf5 {[%emt 0:00:11]} 39. Rc5+ {[%emt 0:00:41]} 1-0

[Event "7. Arber-Senioren-Cup 2019"]
[Site "Bodenmais"]
[Date "2019.08.01"]
[Round "6.6"]
[White "Korte, Markus"]
[Black "Fleuch, Hans-Juergen"]
[Result "1/2-1/2"]
[ECO "B18"]
[WhiteElo "2028"]
[BlackElo "1951"]
[Annotator "NA"]
[PlyCount "175"]
[EventDate "2019.07.27"]
[EventType "swiss"]
[EventCountry "GER"]
[SourceTitle "playchess.com"]
[Source "ChessBase"]
[SourceQuality "1"]
[TimeControl "60/7800+30:0"]

1. e4 {[%emt 0:00:00]} c6 {[%emt 0:00:00]} 2. d4 {[%emt 0:00:00]} d5 {[%emt 0:00:10]} 3. Nd2 {[%emt 0:00:19]} dxe4 {[%emt 0:00:34]} 4. Nxe4 {[%emt 0:00:06]} Bf5 {[%emt 0:00:16]} 5. Ng3 {[%emt 0:00:05]} Bg6 {[%emt 0:00:13]} 6. Nf3 {[%emt 0:00:08]} Nd7 {[%emt 0:00:31]} 7. Bc4 {[%emt 0:00:16]} e6 {[%emt 0:00:28]} 8. O-O {[%emt 0:00:12]} Ngf6 {[%emt 0:02:01]} 9. Re1 {[%emt 0:00:07]} Be7 {[%emt 0:01:55]} 10. Nh4 {[%emt 0:08:00]} Nd5 {[%emt 0:07:05]} 11. Nxg6 {[%emt 0:03:13]} hxg6 {[%emt 0:00:04]} 12. Qf3 {[%emt 0:00:26]} N7f6 {[%emt 0:01:50]} 13. c3 {[%emt 0:03:18]} Qc7 {[%emt 0:04:28]} 14. Bg5 {[%emt 0:09:05]} O-O-O {[%emt 0:08:42]} 15. h3 {[%emt 0:02:18]} Nh5 {[%emt 0:12:30]} 16. Bxe7 {[%emt 0:13:51]} Qxe7 {[%emt 0:00:44]} 17. Ne4 {[%emt 0:03:08]} Nhf4 {[%emt 0:02:36]} 18. Bf1 {[%emt 0:03:33]} Qc7 {[%emt 0:05:10]} 19. Ng3 {[%emt 0:26:06]} Nf6 {[%emt 0:11:51]} 20. Re5 {[%emt 0:04:40]} N4d5 {[%emt 0:04:49]} 21. c4 {[%emt 0:02:51]} Ne7 {[%emt 0:04:50]} 22. Qe3 {[%emt 0:03:22]} Qb6 {[%emt 0:01:56]} 23. Qa3 {[%emt 0:03:21]} Nf5 {[%emt 0:18:43]} 24. Nxf5 {[%emt 0:07:14]} gxf5 {[%emt 0:03:04]} 25. d5 {[%emt 0:13:05]} Ne4 {[%emt 0:02:40]} 26. c5 {[%emt 0:01:18]} Qxc5 {[%emt 0:08:08]} 27. Qxc5 {[%emt 0:00:13]} Nxc5 {[%emt 0:00:22]} 28. dxc6 {[%emt 0:00:03]} b6 {[%emt 0:02:47]} 29. b4 {[%emt 0:05:52]} Nd3 {[%emt 0:00:21]} 30. Bxd3 {[%emt 0:02:29]} Rxd3 {[%emt 0:00:27]} 31. b5 {[%emt 0:02:21]} Rhd8 {[%emt 0:03:43]} 32. Kf1 {[%emt 0:02:15]} Rd1+ {[%emt 0:08:20]} 33. Re1 {[%emt 0:03:11]} R1d2 {[%emt 0:00:33]} 34. a4 {[%emt 0:00:57]} Rb2 {[%emt 0:01:59]} 35. Red1 {[%emt 0:00:20]} Rdd2 {[%emt 0:06:49]} 36. Rxd2 {[%emt 0:00:25]} Rxd2 {[%emt 0:00:02]} 37. Ke1 {[%emt 0:00:14]} Rd4 {[%emt 0:00:17]} 38. a5 {[%emt 0:04:12]} bxa5 {[%emt 0:00:49]} 39. Rxa5 {[%emt 0:00:11]} Kb8 {[%emt 0:00:42]} 40. c7+ {[%emt 0:03:42]} Kxc7 {[%emt 0:03:31]} 41. Rxa7+ {[%emt 0:00:07]} Kb6 {[%emt 0:00:35]} 42. Rxf7 {[%emt 0:00:11]} g5 {[%emt 0:01:24]} 43. Rg7 {[%emt 0:00:50]} Kxb5 {[%emt 0:03:32]} 44. Rxg5 {[%emt 0:00:11]} Kc6 {[%emt 0:00:39]} 45. g3 {[%emt 0:02:30]} Kd6 {[%emt 0:00:27]} 46. Rg8 {[%emt 0:00:29]} Ke7 {[%emt 0:01:43]} 47. Ke2 {[%emt 0:00:57]} Kf7 {[%emt 0:00:28]} 48. Ra8 {[%emt 0:00:39]} e5 {[%emt 0:00:23]} 49. Ra6 {[%emt 0:00:10]} Rb4 {[%emt 0:00:32]} 50. Rd6 {[%emt 0:01:13]} Rb2+ {[%emt 0:00:12]} 51. Rd2 {[%emt 0:01:20]} Rb6 {[%emt 0:00:02]} 52. Rd7+ {[%emt 0:01:45]} Kf6 {[%emt 0:00:02]} 53. h4 {[%emt 0:00:26]} Kg6 {[%emt 0:00:19]} 54. Rd8 {[%emt 0:01:21]} Rb2+ {[%emt 0:00:14]} 55. Rd2 {[%emt 0:01:05]} Rb6 {[%emt 0:00:04]} 56. Rd5 {[%emt 0:01:10]} Rb2+ {[%emt 0:00:28]} 57. Kf3 {[%emt 0:00:48]} Rb3+ {[%emt 0:00:46]} 58. Kg2 {[%emt 0:00:14]} Kf6 {[%emt 0:00:19]} 59. h5 {[%emt 0:00:30]} Rb7 {[%emt 0:00:47]} 60. Kh3 {[%emt 0:02:26]} Rb6 {[%emt 0:06:11]} 61. h6 {[%emt 2:12:01]} Kg5 {[%emt 2:10:10]} 62. Rxe5 {[%emt 0:01:00]} Rxh6+ {[%emt 0:00:02]} 63. Kg2 {[%emt 0:00:08]} Ra6 {[%emt 0:00:25]} 64. Kf3 {[%emt 0:01:15]} Ra3+ {[%emt 0:00:19]} 65. Re3 {[%emt 0:01:01]} Ra5 {[%emt 0:00:13]} 66. Rb3 {[%emt 0:00:13]} Ra2 {[%emt 0:00:21]} 67. Ke3 {[%emt 0:00:20]} Ra4 {[%emt 0:00:58]} 68. Rd3 {[%emt 0:00:29]} Re4+ {[%emt 0:00:10]} 69. Kf3 {[%emt 0:00:05]} Ra4 {[%emt 0:00:13]} 70. Rd8 {[%emt 0:00:06]} Ra3+ {[%emt 0:00:10]} 71. Kg2 {[%emt 0:00:27]} Kg6 {[%emt 0:01:10]} 72. Rf8 {[%emt 0:00:44]} Ra2 {[%emt 0:00:18]} 73. Rg8+ {[%emt 0:00:21]} Kf7 {[%emt 0:00:14]} 74. Rb8 {[%emt 0:00:20]} Kg6 {[%emt 0:00:12]} 75. Rb5 {[%emt 0:00:42]} Rc2 {[%emt 0:00:18]} 76. Re5 {[%emt 0:00:11]} Kf6 {[%emt 0:00:12]} 77. Re3 {[%emt 0:00:25]} Kg5 {[%emt 0:00:14]} 78. Kf3 {[%emt 0:00:09]} Ra2 {[%emt 0:00:15]} 79. Rd3 {[%emt 0:00:35]} Rb2 {[%emt 0:00:31]} 80. Ke3 {[%emt 0:00:18]} Rb4 {[%emt 0:00:40]} 81. Rd2 {[%emt 0:00:55]} Re4+ {[%emt 0:00:21]} 82. Kd3 {[%emt 0:00:12]} Kg4 {[%emt 0:01:06]} 83. Rc2 {[%emt 0:00:33]} Ra4 {[%emt 0:00:25]} 84. Rc4+ {[%emt 0:02:21]} Rxc4 {[%emt 0:00:24]} 85. Kxc4 {[%emt 0:00:02]} Kf3 {[%emt 0:00:01]} 86. Kd5 {[%emt 0:00:11]} Kxf2 {[%emt 0:00:04]} 87. Ke5 {[%emt 0:00:05]} Kxg3 {[%emt 0:00:03]} 88. Kxf5 {[%emt 0:00:04]} 1/2-1/2

[Event "7. Arber-Senioren-Cup 2019"]
[Site "Bodenmais"]
[Date "2019.08.01"]
[Round "6.7"]
[White "Nickl, Klaus"]
[Black "Greul, Hans"]
[Result "0-1"]
[ECO "D00"]
[WhiteElo "1988"]
[BlackElo "2009"]
[Annotator "NA"]
[PlyCount "78"]
[EventDate "2019.07.27"]
[EventType "swiss"]
[EventCountry "GER"]
[SourceTitle "playchess.com"]
[Source "ChessBase"]
[SourceQuality "1"]
[TimeControl "60/7800+30:0"]

1. d4 {[%emt 0:00:00]} d5 {[%emt 0:00:00]} 2. Bf4 {[%emt 0:00:00]} e6 {[%emt 0:00:08]} 3. Nf3 {[%emt 0:00:08]} c5 {[%emt 0:00:05]} 4. e3 {[%emt 0:00:49]} Qb6 {[%emt 0:00:21]} 5. Qc1 {[%emt 0:00:12]} Bd7 {[%emt 0:00:19]} 6. Nbd2 {[%emt 0:00:26]} Bb5 {[%emt 0:02:10]} 7. Bxb5+ {[%emt 0:16:44]} Qxb5 {[%emt 0:00:08]} 8. c4 {[%emt 0:00:49]} dxc4 {[%emt 0:03:18]} 9. O-O {[%emt 0:03:54]} Nc6 {[%emt 0:01:08]} 10. Qxc4 {[%emt 0:05:01]} Qxc4 {[%emt 0:00:13]} 11. Nxc4 {[%emt 0:00:12]} cxd4 {[%emt 0:00:28]} 12. exd4 {[%emt 0:01:43]} Nf6 {[%emt 0:01:00]} 13. Rad1 {[%emt 0:13:43]} Rd8 {[%emt 0:03:10]} 14. Bg5 {[%emt 0:04:54]} Be7 {[%emt 0:02:51]} 15. a3 {[%emt 0:01:36]} Nd5 {[%emt 0:02:20]} 16. Nce5 {[%emt 0:02:52]} Nxe5 {[%emt 0:05:41]} 17. dxe5 {[%emt 0:00:20]} h6 {[%emt 0:10:21]} 18. Bxe7 {[%emt 0:02:50]} Kxe7 {[%emt 0:00:09]} 19. g3 {[%emt 0:05:23]} Nb6 {[%emt 0:10:27]} 20. Rxd8 {[%emt 0:00:23]} Rxd8 {[%emt 0:00:08]} 21. Rc1 {[%emt 0:00:10]} Kd7 {[%emt 0:06:01]} 22. Kf1 {[%emt 0:06:02]} Rc8 {[%emt 0:02:11]} 23. Rd1+ {[%emt 0:05:22]} Ke7 {[%emt 0:04:34]} 24. Ke2 {[%emt 0:04:19]} Rc5 {[%emt 0:01:56]} 25. b4 {[%emt 0:03:23]} Rc2+ {[%emt 0:06:05]} 26. Rd2 {[%emt 0:00:36]} Rc1 {[%emt 0:00:26]} 27. Ne1 {[%emt 0:05:05]} Nc4 {[%emt 0:02:04]} 28. Nd3 {[%emt 0:00:20]} Rc3 {[%emt 0:06:52]} 29. Ra2 {[%emt 0:02:17]} Nxa3 {[%emt 0:01:37]} 30. Nc5 {[%emt 0:01:19]} b6 {[%emt 0:02:05]} 31. Ne4 {[%emt 0:01:03]} Rc2+ {[%emt 0:00:39]} 32. Rxc2 {[%emt 0:01:06]} Nxc2 {[%emt 0:00:02]} 33. Nd6 {[%emt 0:00:35]} Nxb4 {[%emt 0:02:08]} 34. Nc8+ {[%emt 0:00:09]} Kd7 {[%emt 0:00:35]} 35. Nxa7 Nc6 36. Nb5 {[%emt 0:01:10]} Nxe5 {[%emt 0:00:41]} 37. f4 {[%emt 0:00:11]} Ng4 {[%emt 0:00:33]} 38. h3 {[%emt 0:00:17]} Nf6 {[%emt 0:00:14]} 39. Kf3 {[%emt 0:00:08]} Kc6 {[%emt 0:00:24]} 0-1

[Event "7. Arber-Senioren-Cup 2019"]
[Site "Bodenmais"]
[Date "2019.08.01"]
[Round "6.8"]
[White "Hamlack, Heinz"]
[Black "Steinbach, Peter"]
[Result "1/2-1/2"]
[ECO "B00"]
[WhiteElo "1986"]
[BlackElo "1958"]
[Annotator "NA"]
[PlyCount "20"]
[EventDate "2019.07.27"]
[EventType "swiss"]
[EventCountry "GER"]
[SourceTitle "playchess.com"]
[Source "ChessBase"]
[SourceQuality "1"]
[TimeControl "60/7800+30:0"]

1. e4 {[%emt 0:00:00]} Nc6 {[%emt 0:02:34]} 2. d4 {[%emt 0:02:16]} d5 {[%emt 0:00:31]} 3. e5 {[%emt 0:02:20]} Bf5 {[%emt 0:00:15]} 4. g4 {[%emt 0:03:06]} Bg6 {[%emt 0:07:39]} 5. h4 {[%emt 0:00:13]} h5 {[%emt 0:00:40]} 6. e6 {[%emt 0:00:37]} hxg4 {[%emt 0:15:11]} 7. Bd3 {[%emt 0:06:48]} Nf6 {[%emt 0:04:33]} 8. Bxg6 {[%emt 0:00:10]} fxg6 {[%emt 0:00:01]} 9. Bf4 {[%emt 0:09:48]} Qc8 {[%emt 0:01:31]} 10. Ne2 {[%emt 0:14:01]} Qxe6 {[%emt 0:01:10]} 1/2-1/2

[Event "7. Arber-Senioren-Cup 2019"]
[Site "Bodenmais"]
[Date "2019.08.01"]
[Round "6.9"]
[White "Waltenberger, Udo"]
[Black "Neubauer, Jaroslaus"]
[Result "1/2-1/2"]
[ECO "A46"]
[WhiteElo "1986"]
[BlackElo "2014"]
[Annotator "NA"]
[PlyCount "56"]
[EventDate "2019.07.27"]
[EventType "swiss"]
[EventCountry "GER"]
[SourceTitle "playchess.com"]
[Source "ChessBase"]
[SourceQuality "1"]
[TimeControl "60/7800+30:0"]

1. d4 {[%emt 0:00:00]} Nf6 {[%emt 0:00:00]} 2. Nf3 {[%emt 0:00:00]} e6 {[%emt 0:00:08]} 3. g3 {[%emt 0:00:00]} d5 {[%emt 0:00:25]} 4. Bg2 {[%emt 0:00:00]} Be7 {[%emt 0:00:38]} 5. O-O {[%emt 0:00:00]} O-O {[%emt 0:00:21]} 6. b3 {[%emt 0:01:04]} b6 {[%emt 0:01:21]} 7. c4 {[%emt 0:00:18]} Bb7 {[%emt 0:00:41]} 8. Nc3 {[%emt 0:00:55]} Nbd7 {[%emt 0:02:02]} 9. Bb2 {[%emt 0:01:18]} a6 10. Rc1 Ne4 {[%emt 0:14:06]} 11. Nd2 {[%emt 0:11:06]} Nxc3 {[%emt 0:01:17]} 12. Rxc3 {[%emt 0:02:31]} Nf6 {[%emt 0:01:03]} 13. Qc1 {[%emt 0:08:05]} Ne4 {[%emt 0:08:45]} 14. Nxe4 {[%emt 0:02:09]} dxe4 {[%emt 0:00:15]} 15. Rd1 {[%emt 0:03:38]} f5 {[%emt 0:03:56]} 16. e3 {[%emt 0:01:03]} a5 {[%emt 0:01:01]} 17. Ba3 {[%emt 0:02:43]} Bb4 {[%emt 0:01:51]} 18. Rc2 {[%emt 0:01:19]} Qe7 {[%emt 0:11:12]} 19. c5 {[%emt 0:02:02]} Bxa3 {[%emt 0:03:41]} 20. Qxa3 {[%emt 0:00:02]} Bd5 {[%emt 0:03:13]} 21. Qa4 {[%emt 0:04:39]} Rfb8 {[%emt 0:04:54]} 22. Bf1 {[%emt 0:08:19]} b5 {[%emt 0:06:29]} 23. Bxb5 {[%emt 0:02:56]} c6 {[%emt 0:00:12]} 24. Bc4 {[%emt 0:03:30]} Rb4 {[%emt 0:00:09]} 25. Qa3 {[%emt 0:00:01]} Qb7 {[%emt 0:00:29]} 26. Bxd5 {[%emt 0:09:42]} exd5 {[%emt 0:00:19]} 27. Rb1 {[%emt 0:01:25]} a4 {[%emt 0:02:20]} 28. Qc1 {[%emt 0:03:16]} axb3 {[%emt 0:02:01]} 1/2-1/2

[Event "7. Arber-Senioren-Cup 2019"]
[Site "Bodenmais"]
[Date "2019.08.01"]
[Round "6.10"]
[White "Halli, Gerhard"]
[Black "Oberhofer, Max"]
[Result "1/2-1/2"]
[ECO "A45"]
[WhiteElo "1955"]
[BlackElo "2187"]
[Annotator "NA"]
[PlyCount "93"]
[EventDate "2019.07.27"]
[EventType "swiss"]
[EventCountry "GER"]
[SourceTitle "playchess.com"]
[Source "ChessBase"]
[SourceQuality "1"]
[TimeControl "60/7800+30:0"]

1. d4 {[%emt 0:01:40]} Nf6 {[%emt 0:00:00]} 2. Bg5 {[%emt 0:01:09]} Ne4 {[%emt 0:00:27]} 3. Bf4 {[%emt 0:00:09]} d5 {[%emt 0:00:19]} 4. f3 {[%emt 0:03:37]} Nd6 {[%emt 0:00:34]} 5. e3 {[%emt 0:00:15]} Bf5 6. Bd3 {[%emt 0:02:22]} e6 {[%emt 0:04:58]} 7. Ne2 {[%emt 0:00:58]} Nd7 {[%emt 0:03:01]} 8. O-O {[%emt 0:07:06]} Be7 {[%emt 0:03:36]} 9. b3 {[%emt 0:04:50]} Bg5 {[%emt 0:01:59]} 10. Nbc3 {[%emt 0:08:45]} O-O {[%emt 0:04:23]} 11. Qd2 {[%emt 0:01:38]} Bxf4 {[%emt 0:00:30]} 12. Nxf4 {[%emt 0:01:16]} c6 {[%emt 0:01:28]} 13. e4 {[%emt 0:02:37]} Bg6 {[%emt 0:05:57]} 14. Nxg6 {[%emt 0:01:27]} hxg6 {[%emt 0:00:22]} 15. e5 {[%emt 0:00:33]} Nf5 {[%emt 0:00:12]} 16. Ne2 {[%emt 0:00:07]} c5 {[%emt 0:09:38]} 17. Bxf5 {[%emt 0:00:44]} gxf5 {[%emt 0:00:11]} 18. c3 {[%emt 0:00:09]} Rc8 {[%emt 0:02:52]} 19. Rac1 {[%emt 0:00:10]} Qh4 {[%emt 0:05:07]} 20. f4 {[%emt 0:02:44]} Rc6 {[%emt 0:03:13]} 21. Qd3 {[%emt 0:06:15]} Rfc8 {[%emt 0:01:06]} 22. Qd2 {[%emt 0:05:07]} g6 {[%emt 0:04:25]} 23. Rf3 {[%emt 0:01:12]} cxd4 {[%emt 0:04:58]} 24. cxd4 {[%emt 0:00:08]} Rxc1+ {[%emt 0:00:48]} 25. Nxc1 {[%emt 0:00:03]} Kg7 {[%emt 0:00:40]} 26. Ne2 {[%emt 0:00:49]} Nb8 {[%emt 0:01:06]} 27. Rc3 {[%emt 0:06:59]} Nc6 {[%emt 0:01:21]} 28. b4 {[%emt 0:07:02]} a6 {[%emt 0:01:58]} 29. a3 {[%emt 0:00:34]} Na7 {[%emt 0:02:35]} 30. Rc5 {[%emt 0:04:26]} b6 {[%emt 0:04:51]} 31. Rxc8 {[%emt 0:08:54]} Nxc8 {[%emt 0:00:06]} 32. Qc1 {[%emt 0:01:17]} Na7 {[%emt 0:03:17]} 33. a4 {[%emt 0:03:31]} Qe7 {[%emt 0:07:42]} 34. Qc3 {[%emt 0:01:03]} Qd7 {[%emt 0:01:02]} 35. Qc2 {[%emt 0:02:56]} Qc6 {[%emt 0:02:39]} 36. Qxc6 {[%emt 0:00:10]} Nxc6 37. b5 axb5 {[%emt 0:00:48]} 38. axb5 {[%emt 0:00:31]} Na5 {[%emt 0:00:54]} 39. Kf2 {[%emt 0:00:27]} Nc4 {[%emt 0:01:06]} 40. Nc3 {[%emt 0:00:09]} f6 {[%emt 0:02:09]} 41. Kf3 {[%emt 0:03:47]} fxe5 {[%emt 0:00:34]} 42. fxe5 {[%emt 0:00:05]} g5 {[%emt 0:00:41]} 43. h3 {[%emt 0:00:38]} Kg6 {[%emt 0:01:34]} 44. g4 {[%emt 0:01:21]} Nd2+ {[%emt 0:04:34]} 45. Ke3 {[%emt 0:00:25]} Nc4+ {[%emt 0:00:20]} 46. Kf3 {[%emt 0:00:50]} f4 {[%emt 0:08:04]} 47. Ke2 {[%emt 0:01:40]} 1/2-1/2